Cogmind - Beta 14 @@@ ROGUE MODE // 2024.08.22 @ 22:58:30 Player: Parra Result: Destroyed by D-53 Grenadier with Mini Grenade Launcher Performance ------------- Evolutions (1) 500 Regions Visited (3) 600 Robots Destroyed (20) 100 Value Destroyed (272) 272 Prototype IDs (4) 80 Alien Tech Used (0) 0 Bonus (-20) -20 TOTAL SCORE: 1532 Bonus ------- Friendly Fire -20 Cogmind --------- Core Integrity 0/400 Matter 300/300 Energy 99/100 System Corruption 0% Temperature Cool (0) Movement Core (100) Ox1 Location -9/Mines Parts ------- > --- POWER (1) -------- (None) > --- PROPULSION (3) --- (None) > --- UTILITY (3) ------ Small Storage Unit > --- WEAPON (2) ------- (None) > --- INVENTORY (8) ---- Ion Engine Medium Laser Small Laser Light Assault Rifle Plasma Cutter Peak State ------------ > --- POWER ------------ Ion Engine > --- PROPULSION ------- Aluminum Leg Aluminum Leg Aluminum Leg > --- UTILITY ---------- Small Storage Unit Hardened Light Armor Plating Shield Generator > --- WEAPON ----------- Light Assault Rifle Heavy Assault Rifle > --- INVENTORY -------- Medium Laser Small Laser Light Assault Rifle Plasma Cutter [Rating: 12] Favorites ----------- Power Ion Engine Engine Ion Engine Propulsion Aluminum Leg Leg Aluminum Leg Utility Small Storage Unit Device Shield Generator Storage Small Storage Unit Protection Hardened Light Armor Plating Weapon Light Assault Rifle Energy Gun Medium Laser Ballistic Gun Light Assault Rifle Build | -11 -10 -9 -9 ------- Run | Yrd Mat Mat Min Slots Evolved 2 | . . 2 . Power . | . . . . Propulsion 1 | . . 1 . Utility 1 | . . 1 . Weapon . | . . . . Parts Attached 15 | 6 . 5 4 Power 3 | 1 . 1 1 Engine 3 | 1 . 1 1 Core . | . . . . Reactor . | . . . . Propulsion 5 | 2 . 3 . Treads . | . . . . Leg 5 | 2 . 3 . Wheel . | . . . . Hover . | . . . . Flight . | . . . . Utility 3 | 1 . . 2 Device 1 | . . . 1 Storage 1 | 1 . . . Processor . | . . . . Hackware . | . . . . Protection 1 | . . . 1 Artifact . | . . . . Weapon 4 | 2 . 1 1 Energy Gun 1 | 1 . . . Energy Cannon . | . . . . Ballistic Gun 3 | 1 . 1 1 Ballistic Cannon . | . . . . Launcher . | . . . . Special Weapon . | . . . . Impact Weapon . | . . . . Slashing Weapon . | . . . . Piercing Weapon . | . . . . Special Melee Weapon . | . . . . Unidentified Prototypes . | . . . . Parts Lost 10 | . . 2 8 Power 2 | . . 1 1 Propulsion 4 | . . 1 3 Utility 2 | . . . 2 Weapon 2 | . . . 2 Highest Loss Streak 8 | . . 2 8 To Critical Strikes . | . . . . Average Slot Usage (%) 81 | . 85 59 95 Engine 10 | . 14 7 10 Leg 26 | . 28 18 32 Device 4 | . . . 9 Storage 11 | . 14 11 11 Protection 4 | . . . 9 Energy Gun 6 | . 14 10 . Ballistic Gun 16 | . 14 11 21 Peak Build Rating 12 | 6 6 7 12 Average Rating 7 | 4 6 5 11 On Entrance 4 | . 6 6 7 Naked Turns . | . . . . Heaviest Build 21 | 13 13 13 21 Greatest Support 30 | 20 20 30 30 Greatest Overweight (x) 2 | . . . 2 Average Overweight (x) . | . . . . Largest Inventory Capacity 8 | 8 8 8 8 Average Capacity 7 | 6 8 8 8 Most Carried 5 | 1 1 5 5 Average Carried 2 | . . 1 4 Final Capacity 8 | 8 8 8 8 Final Carried 5 | . 1 3 5 Class Distribution -------------------- 54% | Mutant 45% | Scavenger-Mutant Dominant Class ---------------- Mutant | -10/Materials Mutant | -9/Materials Scavenger-Mutant | -9/Mines Resources | -11 -10 -9 -9 ----------- Run | Yrd Mat Mat Min Matter Collected 473 | 186 90 63 134 Remotely . | . . . . Salvage Created 355 | . 78 171 106 Parts 34 | . 9 16 9 Haulers Intercepted . | . . . . Recyclers Shooed 2 | . . 2 . Parts Field Recycled . | . . . . Retrieved Matter . | . . . . Parts Self-Destructed . | . . . . Prevented . | . . . . Kills | -11 -10 -9 -9 ------- Run | Yrd Mat Mat Min Combat Hostiles Destroyed 20 | . 6 7 7 Guns 20 | . 6 7 7 Classes Destroyed 2 | . 1 1 . Swarmer 17 | . 6 4 7 Grunt 3 | . . 3 . Best Kill Streak 4 | . 4 4 4 Combat Bots Only 4 | . 4 4 4 Max Kills in Single Turn 2 | . 2 1 1 Gunslinging 1 | . 1 . . Exploded . | . . . . Melee . | . . . . Uniques/NPCs Destroyed . | . . . . Combat | -11 -10 -9 -9 -------- Run | Yrd Mat Mat Min Hostile Shots Fired 164 | . 37 36 91 Missed 48 | . 14 5 29 Damage Taken 1514 | . 173 272 1069 Core 466 | . 43 90 333 Absorbed by Shields 77 | . . . 77 Regen/Repaired (Parts) 55 | . . 55 . Core Remaining (%) 91 | 100 82 . . Volleys Fired 66 | . 16 27 23 Largest 2 | . 2 2 2 Hottest 70 | . 70 70 43 Shots Fired 132 | . 32 54 46 Gun 132 | . 32 54 46 Cannon . | . . . . Launcher . | . . . . Special . | . . . . Kinetic 89 | . 16 27 46 Thermal 43 | . 16 27 . Explosive . | . . . . Electromagnetic . | . . . . Robot Hit Streak 8 | . 4 8 5 Robot Miss Streak 4 | . 4 3 4 Penetration Max . | . . . . Secondary Targets 4 | . 2 1 1 Max Gunslinging Chain 1 | . 1 1 1 Shots Hit Robots 80 | . 16 39 25 Core Hits 34 | . 9 14 11 Critical Kills . | . . . . Critical Parts Destroyed . | . . . . Critical Strikes 5 | . 1 4 . Burn 5 | . 1 4 . Melee Attacks . | . . . . Impact . | . . . . Slashing . | . . . . Piercing . | . . . . Sneak Attacks . | . . . . Combat Hostiles . | . . . . Follow-up Attacks . | . . . . Damage Inflicted 918 | . 180 403 335 Guns 917 | . 180 402 335 Cannons . | . . . . Explosions . | . . . . Melee . | . . . . Ramming 1 | . . 1 . Kinetic 591 | . 54 202 335 Thermal 326 | . 126 200 . Explosive . | . . . . Electromagnetic . | . . . . Impact . | . . . . Slashing . | . . . . Piercing . | . . . . Highest Corruption . | . . . . Average Corruption . | . . . . Corruption Purged . | . . . . Corruption Blocked . | . . . . Overload Shots . | . . . . Overflow Damage . | . . . . Projectiles . | . . . . Explosions . | . . . . Melee . | . . . . Knockbacks . | . . . . Impact . | . . . . Kinetic . | . . . . Secondary . | . . . . Self-Inflicted Damage . | . . . . Shots . | . . . . Rammed . | . . . . Targets Rammed 1 | . . 1 . Kicked 1 | . . 1 . Crushed . | . . . . Highest Temperature 140 | . 140 139 12 Average Temperature 36 | . 56 39 5 Received Heat Transfer 60 | . . 60 . Siege Activations . | . . . . Robots Corrupted . | . . . . Combat Hostiles . | . . . . Parts Fried . | . . . . Impact Corruptions . | . . . . Robots Melted . | . . . . Combat Hostiles . | . . . . Parts Melted 2 | . 1 1 . Heat Transferred 1332 | . 444 888 . Parts Sabotaged . | . . . . Parts Stolen . | . . . . Parts Stripped . | . . . . Power Chain Reactions . | . . . . Alert | -11 -10 -9 -9 ------- Run | Yrd Mat Mat Min Peak Influence 205 | . 162 205 203 Initial 68 | . . 68 28 Average 91 | . 98 116 81 Maximum Alert Level 1 | . . 1 1 Low Security (%) 92 | 100 100 90 89 Level 1 7 | . . 9 10 Level 2 . | . . . . Level 3 . | . . . . Level 4 . | . . . . Level 5 . | . . . . High Security . | . . . . Max Security . | . . . . Squads Dispatched 1 | . . 1 . Investigation . | . . . . Extermination . | . . . . Reinforcement 1 | . . 1 . Assault . | . . . . Garrison . | . . . . Intercept . | . . . . Searches Triggered . | . . . . Construction Impeded . | . . . . Haulers Reinforced . | . . . . Active Scanning Responses . | . . . . Cargo Convoy Interrupts . | . . . . Stealth | -11 -10 -9 -9 --------- Run | Yrd Mat Mat Min Distress Signals 3 | . 1 2 . Communications Jammed . | . . . . Distress Signals . | . . . . Times Spotted 41 | . 10 10 21 Peak Tracking Total 11 | . 6 5 11 Tactical Retreats 1 | . 1 . . Traps | -11 -10 -9 -9 ------- Run | Yrd Mat Mat Min Traps Triggered . | . . . . Indirectly . | . . . . Trap Hack Attempts . | . . . . Triggered . | . . . . Disarmed . | . . . . Reprogrammed . | . . . . Reused . | . . . . Traps Extracted . | . . . . Installed . | . . . . Triggered . | . . . . Machines | -11 -10 -9 -9 ---------- Run | Yrd Mat Mat Min Machines Disabled . | . . . . Max in Single Turn . | . . . . Machines Repaired . | . . . . Machines Dismantled . | . . . . Machines Sabotaged . | . . . . Overloaded Fab Kills . | . . . . Hacking | -11 -10 -9 -9 --------- Run | Yrd Mat Mat Min Machines Accessed 5 | . 2 3 . Terminals 4 | . 2 2 . Fabricators . | . . . . Repair Stations 1 | . . 1 . Recycling Units . | . . . . Scanalyzers . | . . . . Garrison Access . | . . . . Total Hacks 19 | . 7 12 . Successful 13 | . 5 8 . Failed 6 | . 2 4 . Catastrophic . | . . . . Database Lockouts . | . . . . Manual 1 | . 1 . . Terminals 16 | . 7 9 . Fabricators . | . . . . Repair Stations 3 | . . 3 . Recycling Units . | . . . . Scanalyzers . | . . . . Garrison Access . | . . . . Terminal Hacks 11 | . 5 6 . Record 3 | . 3 . . Prototype ID Bank 2 | . 1 1 . Alert Level 2 | . . 2 . Unreport Threat 1 | . . 1 . Dispatch Records 1 | . 1 . . Transport Status 1 | . . 1 . Zone Layout 1 | . . 1 . Fabricator Hacks . | . . . . Repair Station Hacks 2 | . . 2 . Scan Component 1 | . . 1 . Repair 1 | . . 1 . Recycling Unit Hacks . | . . . . Scanalyzer . | . . . . Garrison Access Hacks . | . . . . Unauthorized Hacks . | . . . . Terminals . | . . . . Fabricators . | . . . . Repair Stations . | . . . . Recycling Units . | . . . . Scanalyzers . | . . . . Garrison Access . | . . . . Data Cores Recovered . | . . . . Used . | . . . . Hacking Detections 5 | . 2 3 . Full Trace Events . | . . . . Feedback Events . | . . . . Feedback Blocked . | . . . . Robot Schematics Acquired . | . . . . Robots Built . | . . . . Authchips . | . . . . Time . | . . . . Total Robot Build Rating . | . . . . Part Schematics Acquired . | . . . . Parts Built . | . . . . Authchips . | . . . . Time . | . . . . Total Part Build Rating . | . . . . Parts Repaired 1 | . . 1 . Time 26 | . . 26 . Parts Recycled . | . . . . Recycled Matter . | . . . . Retrieved Matter . | . . . . Retrieved Components . | . . . . Parts Scanalyzed . | . . . . Part Schematics Acquired . | . . . . Parts Damaged . | . . . . Bothacking | -11 -10 -9 -9 ------------ Run | Yrd Mat Mat Min Used RIF Installer . | . . . . Robots Hacked . | . . . . Non-combat . | . . . . Combat . | . . . . Robot Hacks Applied . | . . . . Relay Couplers Released . | . . . . Fabnet Peak Effective % . | . . . . Robots Rewired . | . . . . Allies Hacked . | . . . . Hacks Repelled . | . . . . Allies | -11 -10 -9 -9 -------- Run | Yrd Mat Mat Min Total Allies 3 | . . . 3 Largest Group 3 | . . . 3 Highest-Rated Group 40 | . . . 40 Highest-Rated Ally 16 | . . . 16 Total Orders . | . . . . Ally Attacks 8 | . . . 8 Total Damage 75 | . . . 75 Kills 2 | . . . 2 Allies Corrupted . | . . . . Allies Melted . | . . . . Intel | -11 -10 -9 -9 ------- Run | Yrd Mat Mat Min Robot Analysis Total . | . . . . Derelict Logs Recovered 2 | . . . 2 Drone Launches . | . . . . Drone Recoveries . | . . . . Exploration | -11 -10 -9 -9 ------------- Run | Yrd Mat Mat Min Turns Passed 1131 | 59 245 361 466 Spaces Moved 702 | 52 167 195 288 Core 23 | 18 . . 5 Treads . | . . . . Legs 679 | 34 167 195 283 Wheels . | . . . . Hover . | . . . . Flight . | . . . . Fastest Speed 50 | 50 120 120 100 Average Speed 118 | 95 120 120 120 Slowest Speed 150 | 120 120 120 150 Overloaded Moves . | . . . . Propulsion Burnouts . | . . . . Robots Hopped . | . . . . Cave-ins Triggered . | . . . . Exploration Rate (%) 23 | 3 29 18 44 Regions Visited 3 Branch Regions 1 Pre-discovered Areas 1 | . . . 1 Known Exits Taken . | . . . . Unknown Exits Taken 3 | 1 1 1 . Scrap Searched . | . . . . Spaces Dug . | . . . . Terrain Destroyed . | . . . . Melee . | . . . . Projectile . | . . . . AOE . | . . . . Terrain Rammed . | . . . . Walls Destroyed . | . . . . Machines Disabled . | . . . . Actions | -11 -10 -9 -9 --------- Run | Yrd Mat Mat Min Total 878 | 58 183 272 365 Wait 89 | . . 39 50 Move 699 | 51 166 194 288 Hop . | . . . . Pick Up 8 | 1 1 6 . Fast Attach 7 | 5 . . 2 Attach 5 | 1 . 4 . Detach . | . . . . Swap 3 | . . 1 2 Drop . | . . . . Fire 66 | . 16 27 23 Melee . | . . . . Ram . | . . . . Kick 1 | . . 1 . Crush . | . . . . Escape Stasis . | . . . . Rewire . | . . . . Trap . | . . . . Miscellaneous . | . . . . Route ------- -11/Scrapyard -10/Materials (discovered 2 exits: *Mat x2) -9/Materials -9/Mines (discovered 1 exit: [*Mat]) History --------- Turn | Location | Event 12 | -11/Scrapyard | Discovered new exit (range 15) 60 | -11/Scrapyard | Entered Materials 230 | -10/Materials | Discovered new exit (range 9) 277 | -10/Materials | Discovered new exit (range 5) 305 | -10/Materials | Entered another Materials area 305 | -9/Materials | Evolved 2 slots: Propulsion x1, Utility x1 308 | -9/Materials | Build established: Mutant 595 | -9/Materials | Repaired Aluminum Leg 601 | -9/Materials | Discovered new exit (range 15) 666 | -9/Materials | Entered Mines 683 | -9/Mines | Joined a pair of Derelicts in attacking an 0b10 outpost 892 | -9/Mines | Discovered new exit (range 9) 919 | -9/Mines | Learned Materials emergency access door positions 931 | -9/Mines | Learned location of Storage (-8) 934 | -9/Mines | Build established: Scavenger-Mutant 1087 | -9/Mines | Learned Materials security intel 1094 | -9/Mines | Assembled infested the area 1111 | -9/Mines | Assisted by bots powering up and referring to "LRC-V3" 1127 | -9/Mines | Core integrity fell below 50% 1131 | -9/Mines | Core integrity fell below 20% 1132 | -9/Mines | Destroyed by D-53 Grenadier with Mini Grenade Launcher Last Messages --------------- Trooper 2b: "Hello LRC-V3. What is your command?" C-30 ARC bursts open, deploying its payload. D-53 Grenadier unfolds itself. as-89811 destroyed. Trooper 2b destroyed. as-84230 destroyed. Trooper 2a destroyed. Acquired 4 matter. as-14344 destroyed. as-37917 destroyed. Lgt. Ion Engine destroyed. The unstable cave ceiling collapses. Mercenary 2a destroyed. Hrd. Light Armor Plating destroyed. Aluminum Leg destroyed. Lgt. Assault Rifle destroyed. The unstable cave ceiling collapses. Hvy. Assault Rifle destroyed. The unstable cave ceiling collapses. Map ----- +----------------------------------------------------+ | | | | | ?????????????????????????????????????? | | ?????????????????????????????????????? | | ?????????????????????????????????????? | | ?????????????????????????????????????? | | ?????????????????????????????????????? | | ?????????????????????????????????????? | | ?????????????????????????????????????? | | ?????????????????????????????????????? | | ?????????????????????????????????????? | | ?????????????????????????????????????? | | ?????????????????????????????????????? | | ?????????????????????????????????????? | | ?????????????????????????????????????? | | ?????????????????????????????????????? | | ?????????????????????????????????????? | | ?????????????????????????????????????? | | ?????????????????????????????????????? | | ?????????????????????????????????????? | | ????????????###??????????????????????? | | ????????????# ??????????????????????? | | ????????????# ###????????????????????? | | ?????????#### ##???????????????????? | | ?????????# # #???????????????????? | | ??????#??# @ #???????????????##### | | ??????# ## ##??????????????# # | | ??????# #?????????????## # | | ??????#### # #???########### | | ??????## ##??# | | ?????## # ##?# | | ?????# ### ###### | | ????## dd %" #???# ## | | ????# #??## ### # | | ????# #??####?# # | | ????# ## #???????# | | ????# #% ############???????### | | ????#### ##??????????????####### | | ???????## #???????????????# | | ????????## #???????????????# | | ?????????## #???????????????# < | | ??????????# #??????????????# | | ??????????## ??????????????# | | ???????????## % ?????????????# | | ????????????# ????????????# | | ????????????## ????????????####### | | ?????????????? ???????????????????? | | ?????????????? ????????????????????? | | ?????????????? ?????????????????????? | | ?????????????????????????????????????? | +----------------------------------------------------+ Best States ------------- Heat Dissipation 28 Energy Generation 10 Energy Capacity 250 Matter Stores 300 Matter Capacity 300 Sight Range 16 Terrain Scan Density 10 Armor Coverage 150 Evasion (%) 55 Item Schematics ----------------- None Robot Schematics ------------------ None Fabricated ------------ Nothing Alien Tech Used ----------------- None Achievements -------------- Everything Is Under Control Part-time Mechanic Challenges ------------ None Game ------ Seed GunSpectralBeamcaster Manual? 0 Play Time 00:28:56 Cumulative 5.2 hours Start 2024.08.22 @ 22:29:24 End 2024.08.22 @ 22:58:30 Sessions 1 Manual Loads 0 Difficulty Rogue Special Mode None Game No. 5 Rogue 5 Adventurer 0 Explorer 0 Win Type - Total 0 Types 0/0/0/0/0/0/0/0/0 Lore% 3 Gallery% 6 Achievement% 9 Wizard Run 0 Options --------- Layout 1 ASCII 0 Keyboard 1 Movement Numpad Keybinds 0 Fullscreen 1 Font 24/Smallcaps Map View 50x35 Zoom Use 0% Tactical HUD 0 Map Filters NONE Filters NONE Steam 1 RUN: e5d07e33-36c0-4cc0-8a20-aa50f2012d72